[Event "January 2 Late 2024"]
[Site "https://www.chess.com"]
[Date "2024.01.02"]
[Round "8"]
[White "Cervantes Landeiro, Thalia"]
[Black "RemcoSpr"]
[Result "0-1"]
[Board "112"]
[TimeControl "180+1"]
[WhiteFideId "3520498"]
[WhiteElo "2554"]
[BlackElo "2389"]
[WhiteTeam "USA"]
[WhiteClock "0:00:00"]
[BlackClock "0:00:09"]

1. d4 {[%clk 0:03:00]}  Nf6 {[%clk 0:02:59]} 2. c4 {[%clk 0:02:59]}  c5 {[%clk 0:02:59]} 3. d5 {[%clk 0:02:57]}  e6 {[%clk 0:02:59]} 4. Nc3 {[%clk 0:02:57]}  exd5 {[%clk 0:03:00]} 5. cxd5 {[%clk 0:02:58]}  d6 {[%clk 0:03:00]} 6. Nf3 {[%clk 0:02:55]}  g6 {[%clk 0:03:00]} 7. e4 {[%clk 0:02:55]}  Bg7 {[%clk 0:03:00]} 8. Nd2 {[%clk 0:02:55]}  O-O {[%clk 0:02:58]} 9. Be2 {[%clk 0:02:56]}  a6 {[%clk 0:02:54]} 10. a4 {[%clk 0:02:55]}  Re8 {[%clk 0:02:49]} 11. O-O {[%clk 0:02:55]}  Nbd7 {[%clk 0:02:19]} 12. Qc2 {[%clk 0:02:46]}  Ne5 {[%clk 0:02:11]} 13. h3 {[%clk 0:02:45]}  g5 {[%clk 0:02:10]} 14. Nc4 {[%clk 0:02:44]}  Nxc4 {[%clk 0:02:06]} 15. Bxc4 {[%clk 0:02:45]}  h6 {[%clk 0:01:59]} 16. f4 {[%clk 0:02:41]}  g4 {[%clk 0:01:41]} 17. e5 {[%clk 0:02:10]}  dxe5 {[%clk 0:01:39]} 18. fxe5 {[%clk 0:02:11]}  Rxe5 {[%clk 0:01:38]} 19. Bf4 {[%clk 0:02:03]}  Re8 {[%clk 0:01:16]} 20. d6 {[%clk 0:01:54]}  gxh3 {[%clk 0:01:07]} 21. Qg6 {[%clk 0:01:21]}  Be6 {[%clk 0:01:02]} 22. Bxe6 {[%clk 0:01:18]}  Rxe6 {[%clk 0:01:01]} 23. Qf5 {[%clk 0:01:14]}  hxg2 {[%clk 0:00:38]} 24. Rfe1 {[%clk 0:01:12]}  Qd7 {[%clk 0:00:31]} 25. Rxe6 {[%clk 0:01:10]}  Qxe6 {[%clk 0:00:29]} 26. Qxe6 {[%clk 0:01:10]}  fxe6 {[%clk 0:00:30]} 27. Kxg2 {[%clk 0:01:09]}  Nd5 {[%clk 0:00:28]} 28. Nxd5 {[%clk 0:01:00]}  exd5 {[%clk 0:00:29]} 29. Re1 {[%clk 0:00:59]}  Bxb2 {[%clk 0:00:23]} 30. d7 {[%clk 0:00:58]}  Kf7 {[%clk 0:00:22]} 31. Rb1 {[%clk 0:00:32]}  Bf6 {[%clk 0:00:20]} 32. Rxb7 {[%clk 0:00:33]}  Bd8 {[%clk 0:00:17]} 33. Bxh6 {[%clk 0:00:28]}  Ke6 {[%clk 0:00:17]} 34. Kf3 {[%clk 0:00:25]}  Kd6 {[%clk 0:00:17]} 35. Bf4+ {[%clk 0:00:19]}  Kc6 {[%clk 0:00:17]} 36. Rb1 {[%clk 0:00:17]}  Kxd7 {[%clk 0:00:17]} 37. Ke3 {[%clk 0:00:16]}  Kc6 {[%clk 0:00:16]} 38. Kd3 {[%clk 0:00:16]}  c4+ {[%clk 0:00:16]} 39. Kc2 {[%clk 0:00:09]}  Bb6 {[%clk 0:00:16]} 40. Rh1 {[%clk 0:00:08]}  Rf8 {[%clk 0:00:14]} 41. Rh6+ {[%clk 0:00:08]}  Kb7 {[%clk 0:00:13]} 42. Rh7+ {[%clk 0:00:08]}  Ka8 {[%clk 0:00:14]} 43. Bg3 {[%clk 0:00:06]}  a5 {[%clk 0:00:12]} 44. Rh6 {[%clk 0:00:06]}  Kb7 {[%clk 0:00:12]} 45. Rh7+ {[%clk 0:00:05]}  Ka6 {[%clk 0:00:11]} 46. Bd6 {[%clk 0:00:05]}  Rc8 {[%clk 0:00:11]} 47. Rh6 {[%clk 0:00:02]}  Rc6 {[%clk 0:00:11]} 48. Rf6 {[%clk 0:00:01]}  d4 {[%clk 0:00:11]} 49. Kd2 {[%clk 0:00:01]}  d3 {[%clk 0:00:10]} 50. Be5 {[%clk 0:00:01]}  Rxf6 {[%clk 0:00:09]} 51. Bxf6 {[%clk 0:00:00]}  Bc5 {[%clk 0:00:09]} 0-1

[Event "January 2 Late 2024"]
[Site "https://www.chess.com"]
[Date "2024.01.02"]
[Round "8"]
[White "Bueno, Alfeu Junior Varela"]
[Black "Banerjee, Supratit"]
[Result "0-1"]
[Board "113"]
[TimeControl "180+1"]
[WhiteFideId "2108879"]
[BlackFideId "2410079"]
[WhiteElo "2381"]
[BlackElo "2551"]
[WhiteTeam "BRA"]
[BlackTeam "SCO"]
[WhiteClock "0:00:03"]
[BlackClock "0:00:19"]

1. e4 {[%clk 0:03:00]}  e6 {[%clk 0:02:59]} 2. d4 {[%clk 0:03:00]}  d5 {[%clk 0:03:00]} 3. Nd2 {[%clk 0:03:01]}  dxe4 {[%clk 0:02:59]} 4. Nxe4 {[%clk 0:03:02]}  Nd7 {[%clk 0:02:59]} 5. Bd3 {[%clk 0:03:02]}  Ngf6 {[%clk 0:02:58]} 6. Qe2 {[%clk 0:03:02]}  c5 {[%clk 0:02:57]} 7. dxc5 {[%clk 0:02:59]}  Nxc5 {[%clk 0:02:54]} 8. Nxc5 {[%clk 0:02:57]}  Bxc5 {[%clk 0:02:53]} 9. Nf3 {[%clk 0:02:54]}  O-O {[%clk 0:02:52]} 10. Bg5 {[%clk 0:02:53]}  b6 {[%clk 0:02:45]} 11. O-O-O {[%clk 0:02:50]}  Qe7 {[%clk 0:02:44]} 12. Bxf6 {[%clk 0:02:44]}  gxf6 {[%clk 0:02:38]} 13. Qe4 {[%clk 0:01:47]}  f5 {[%clk 0:02:36]} 14. Qf4 {[%clk 0:01:47]}  Bb7 {[%clk 0:02:31]} 15. Qh6 {[%clk 0:01:45]}  f6 {[%clk 0:02:30]} 16. Bc4 {[%clk 0:01:42]}  Rad8 {[%clk 0:02:24]} 17. Rhe1 {[%clk 0:01:05]}  Rxd1+ {[%clk 0:02:15]} 18. Kxd1 {[%clk 0:00:55]}  Be4 {[%clk 0:02:10]} 19. Nd2 {[%clk 0:00:49]}  Rd8 {[%clk 0:02:02]} 20. Kc1 {[%clk 0:00:48]}  Bd5 {[%clk 0:01:58]} 21. Qh4 {[%clk 0:00:39]}  Bb4 {[%clk 0:01:47]} 22. c3 {[%clk 0:00:31]}  Bc5 {[%clk 0:00:56]} 23. Bxd5 {[%clk 0:00:31]}  Rxd5 {[%clk 0:00:56]} 24. Nb3 {[%clk 0:00:31]}  Bd6 {[%clk 0:00:52]} 25. Nd4 {[%clk 0:00:30]}  Be5 {[%clk 0:00:46]} 26. Nf3 {[%clk 0:00:23]}  Qc7 {[%clk 0:00:34]} 27. Nxe5 {[%clk 0:00:20]}  Rxe5 {[%clk 0:00:33]} 28. Rd1 {[%clk 0:00:18]}  Rd5 {[%clk 0:00:33]} 29. Rxd5 {[%clk 0:00:17]}  exd5 {[%clk 0:00:32]} 30. Qxf6 {[%clk 0:00:17]}  Qf4+ {[%clk 0:00:32]} 31. Kd1 {[%clk 0:00:16]}  Qxf2 {[%clk 0:00:26]} 32. Qe6+ {[%clk 0:00:12]}  Kg7 {[%clk 0:00:25]} 33. Qe7+ {[%clk 0:00:12]}  Kg6 {[%clk 0:00:25]} 34. Qe8+ {[%clk 0:00:12]}  Kf6 {[%clk 0:00:22]} 35. Qf8+ {[%clk 0:00:12]}  Ke6 {[%clk 0:00:22]} 36. Qe8+ {[%clk 0:00:12]}  Kd6 {[%clk 0:00:22]} 37. Qd8+ {[%clk 0:00:12]}  Kc6 {[%clk 0:00:22]} 38. Qc8+ {[%clk 0:00:12]}  Kb5 {[%clk 0:00:19]} 39. Qd7+ {[%clk 0:00:12]}  Ka6 {[%clk 0:00:15]} 40. Qxd5 {[%clk 0:00:12]}  Qxb2 {[%clk 0:00:12]} 41. c4 {[%clk 0:00:09]}  Qa1+ {[%clk 0:00:11]} 42. Kc2 {[%clk 0:00:09]}  Qxa2+ {[%clk 0:00:12]} 43. Kc3 {[%clk 0:00:10]}  Qa5+ {[%clk 0:00:13]} 44. Qxa5+ {[%clk 0:00:09]}  Kxa5 {[%clk 0:00:13]} 45. Kb3 {[%clk 0:00:05]}  Ka6 {[%clk 0:00:13]} 46. Kb4 {[%clk 0:00:05]}  Kb7 {[%clk 0:00:14]} 47. c5 {[%clk 0:00:04]}  a5+ {[%clk 0:00:14]} 48. Kb5 {[%clk 0:00:04]}  bxc5 {[%clk 0:00:15]} 49. Kxc5 {[%clk 0:00:05]}  Ka6 {[%clk 0:00:15]} 50. g3 {[%clk 0:00:04]}  h6 {[%clk 0:00:15]} 51. h3 {[%clk 0:00:04]}  h5 {[%clk 0:00:15]} 52. h4 {[%clk 0:00:04]}  a4 {[%clk 0:00:15]} 53. Kb4 {[%clk 0:00:04]}  Kb6 {[%clk 0:00:16]} 54. Kxa4 {[%clk 0:00:05]}  Kc5 {[%clk 0:00:17]} 55. Kb3 {[%clk 0:00:05]}  Kd4 {[%clk 0:00:18]} 56. Kb4 {[%clk 0:00:01]}  Ke3 {[%clk 0:00:18]} 57. Kc4 {[%clk 0:00:02]}  Kf3 {[%clk 0:00:19]} 58. Kd5 {[%clk 0:00:03]}  Kxg3 {[%clk 0:00:19]} 59. Ke5 {[%clk 0:00:03]}  f4 {[%clk 0:00:19]} 0-1

[Event "January 2 Late 2024"]
[Site "https://www.chess.com"]
[Date "2024.01.02"]
[Round "8"]
[White "Arias Igual, Alejandro"]
[Black "Shapiro, Viktor"]
[Result "0-1"]
[Board "117"]
[TimeControl "180+1"]
[WhiteFideId "2254905"]
[BlackFideId "4175700"]
[WhiteElo "2369"]
[BlackElo "2498"]
[WhiteTeam "ESP"]
[BlackTeam "RUS"]
[WhiteClock "0:00:00"]
[BlackClock "0:00:15"]

1. e4 {[%clk 0:03:00]}  c5 {[%clk 0:02:59]} 2. Nf3 {[%clk 0:03:00]}  d6 {[%clk 0:03:00]} 3. Bb5+ {[%clk 0:02:59]}  Nd7 {[%clk 0:02:58]} 4. a4 {[%clk 0:02:57]}  g6 {[%clk 0:02:57]} 5. O-O {[%clk 0:02:54]}  Bg7 {[%clk 0:02:57]} 6. Nc3 {[%clk 0:02:54]}  a6 {[%clk 0:02:55]} 7. Be2 {[%clk 0:02:53]}  e5 {[%clk 0:02:50]} 8. Bc4 {[%clk 0:02:48]}  Ngf6 {[%clk 0:02:48]} 9. d3 {[%clk 0:02:47]}  O-O {[%clk 0:02:47]} 10. h3 {[%clk 0:02:46]}  h6 {[%clk 0:02:47]} 11. a5 {[%clk 0:02:34]}  Nb8 {[%clk 0:02:47]} 12. Bd2 {[%clk 0:02:30]}  Nc6 {[%clk 0:02:47]} 13. Nd5 {[%clk 0:02:23]}  Nxd5 {[%clk 0:02:44]} 14. Bxd5 {[%clk 0:02:21]}  Be6 {[%clk 0:02:41]} 15. c3 {[%clk 0:02:13]}  Bxd5 {[%clk 0:02:38]} 16. exd5 {[%clk 0:02:13]}  Ne7 {[%clk 0:02:38]} 17. Qb3 {[%clk 0:02:10]}  Qd7 {[%clk 0:02:32]} 18. Be3 {[%clk 0:01:43]}  Qb5 {[%clk 0:02:20]} 19. Qc2 {[%clk 0:01:37]}  Nxd5 {[%clk 0:02:16]} 20. c4 {[%clk 0:01:24]}  Nxe3 {[%clk 0:02:16]} 21. fxe3 {[%clk 0:01:25]}  Qc6 {[%clk 0:02:11]} 22. e4 {[%clk 0:01:10]}  b5 {[%clk 0:02:06]} 23. axb6 {[%clk 0:01:07]}  Qxb6 {[%clk 0:02:05]} 24. Ra2 {[%clk 0:01:07]}  Rfb8 {[%clk 0:02:03]} 25. Rfa1 {[%clk 0:01:01]}  a5 {[%clk 0:02:02]} 26. Nh2 {[%clk 0:00:56]}  f5 {[%clk 0:01:49]} 27. exf5 {[%clk 0:00:53]}  gxf5 {[%clk 0:01:49]} 28. Qe2 {[%clk 0:00:49]}  e4 {[%clk 0:01:35]} 29. dxe4 {[%clk 0:00:44]}  Re8 {[%clk 0:01:35]} 30. Qh5 {[%clk 0:00:30]}  fxe4 {[%clk 0:01:30]} 31. Qd5+ {[%clk 0:00:28]}  Kh8 {[%clk 0:01:26]} 32. Ng4 {[%clk 0:00:28]}  Qd8 {[%clk 0:01:08]} 33. Kh1 {[%clk 0:00:25]}  e3 {[%clk 0:01:00]} 34. Re1 {[%clk 0:00:22]}  e2 {[%clk 0:00:53]} 35. b3 {[%clk 0:00:17]}  Qh4 {[%clk 0:00:53]} 36. Raxe2 {[%clk 0:00:12]}  Red8 {[%clk 0:00:37]} 37. Re7 {[%clk 0:00:07]}  Ra7 {[%clk 0:00:33]} 38. Re8+ {[%clk 0:00:05]}  Bf8 {[%clk 0:00:24]} 39. Qe6 {[%clk 0:00:00]}  Kg7 {[%clk 0:00:15]} 0-1

[Event "January 2 Late 2024"]
[Site "https://www.chess.com"]
[Date "2024.01.02"]
[Round "8"]
[White "Gao, Raymond"]
[Black "xakevicius91"]
[Result "0-1"]
[Board "118"]
[TimeControl "180+1"]
[WhiteFideId "2629429"]
[WhiteElo "2363"]
[BlackElo "2496"]
[WhiteTeam "CAN"]
[WhiteClock "0:00:25"]
[BlackClock "0:02:02"]

1. e4 {[%clk 0:03:00]}  c5 {[%clk 0:02:59]} 2. Nf3 {[%clk 0:02:58]}  a6 {[%clk 0:02:59]} 3. c4 {[%clk 0:02:57]}  Nc6 {[%clk 0:02:59]} 4. d4 {[%clk 0:02:56]}  cxd4 {[%clk 0:03:00]} 5. Nxd4 {[%clk 0:02:57]}  e5 {[%clk 0:02:59]} 6. Nf5 {[%clk 0:02:53]}  d5 {[%clk 0:02:59]} 7. cxd5 {[%clk 0:02:46]}  Bxf5 {[%clk 0:02:59]} 8. dxc6 {[%clk 0:02:30]}  Qxd1+ {[%clk 0:03:00]} 9. Kxd1 {[%clk 0:02:30]}  O-O-O+ {[%clk 0:03:01]} 10. Ke1 {[%clk 0:02:27]}  Bxe4 {[%clk 0:03:01]} 11. cxb7+ {[%clk 0:02:27]}  Kxb7 {[%clk 0:02:53]} 12. Nc3 {[%clk 0:02:25]}  Bc6 {[%clk 0:02:51]} 13. f3 {[%clk 0:02:20]}  Bc5 {[%clk 0:02:47]} 14. Bc4 {[%clk 0:02:18]}  f5 {[%clk 0:02:44]} 15. Ke2 {[%clk 0:02:11]}  Nf6 {[%clk 0:02:41]} 16. Be3 {[%clk 0:02:10]}  Bxe3 {[%clk 0:02:38]} 17. Kxe3 {[%clk 0:02:11]}  f4+ {[%clk 0:02:37]} 18. Ke2 {[%clk 0:02:05]}  Rd4 {[%clk 0:02:34]} 19. Bd3 {[%clk 0:02:02]}  Rhd8 {[%clk 0:02:33]} 20. Rhd1 {[%clk 0:02:00]}  g5 {[%clk 0:02:29]} 21. a3 {[%clk 0:01:36]}  g4 {[%clk 0:02:27]} 22. b4 {[%clk 0:01:34]}  h5 {[%clk 0:02:25]} 23. Bc2 {[%clk 0:01:22]}  h4 {[%clk 0:02:21]} 24. h3 {[%clk 0:01:14]}  gxf3+ {[%clk 0:02:16]} 25. gxf3 {[%clk 0:01:14]}  Nh5 {[%clk 0:02:16]} 26. Ne4 {[%clk 0:00:59]}  Ng3+ {[%clk 0:02:13]} 27. Nxg3 {[%clk 0:00:58]}  hxg3 {[%clk 0:02:14]} 28. Rxd4 {[%clk 0:00:54]}  Rxd4 {[%clk 0:02:15]} 29. h4 {[%clk 0:00:52]}  Bb5+ {[%clk 0:02:14]} 30. Ke1 {[%clk 0:00:49]}  g2 {[%clk 0:02:10]} 31. Kf2 {[%clk 0:00:35]}  Rd2+ {[%clk 0:02:09]} 32. Kg1 {[%clk 0:00:36]}  Rxc2 {[%clk 0:02:10]} 33. h5 {[%clk 0:00:25]}  e4 {[%clk 0:02:02]} 0-1

[Event "January 2 Late 2024"]
[Site "https://www.chess.com"]
[Date "2024.01.02"]
[Round "8"]
[White "Osmonbekov, Talaibek"]
[Black "Bhavikatti, Neil"]
[Result "0-1"]
[Board "125"]
[TimeControl "180+1"]
[WhiteFideId "2017253"]
[BlackFideId "30935024"]
[WhiteElo "2312"]
[BlackElo "2460"]
[WhiteTeam "USA"]
[BlackTeam "USA"]
[WhiteClock "0:00:00"]
[BlackClock "0:00:08"]

1. d4 {[%clk 0:03:00]}  d5 {[%clk 0:02:59]} 2. Nc3 {[%clk 0:03:01]}  e6 {[%clk 0:03:00]} 3. Bf4 {[%clk 0:03:01]}  Bd6 {[%clk 0:03:00]} 4. e3 {[%clk 0:03:01]}  Nf6 {[%clk 0:02:59]} 5. Nf3 {[%clk 0:03:01]}  O-O {[%clk 0:02:59]} 6. Bd3 {[%clk 0:02:57]}  c5 {[%clk 0:02:58]} 7. dxc5 {[%clk 0:02:57]}  Bxf4 {[%clk 0:02:52]} 8. exf4 {[%clk 0:02:58]}  Nbd7 {[%clk 0:02:52]} 9. O-O {[%clk 0:02:54]}  Nxc5 {[%clk 0:02:51]} 10. Re1 {[%clk 0:02:54]}  a6 {[%clk 0:02:46]} 11. Ne5 {[%clk 0:02:54]}  Nxd3 {[%clk 0:02:43]} 12. Qxd3 {[%clk 0:02:51]}  Qc7 {[%clk 0:02:40]} 13. Ne2 {[%clk 0:02:50]}  Ne4 {[%clk 0:02:28]} 14. f3 {[%clk 0:02:46]}  Nc5 {[%clk 0:02:14]} 15. Qd2 {[%clk 0:02:25]}  b5 {[%clk 0:02:03]} 16. Nd4 {[%clk 0:02:23]}  f6 {[%clk 0:01:49]} 17. Nd3 {[%clk 0:02:22]}  Nxd3 {[%clk 0:01:39]} 18. Qxd3 {[%clk 0:02:23]}  e5 {[%clk 0:01:25]} 19. Nb3 {[%clk 0:01:48]}  Bb7 {[%clk 0:01:20]} 20. a4 {[%clk 0:01:40]}  e4 {[%clk 0:00:52]} 21. Qe2 {[%clk 0:01:26]}  Qxf4 {[%clk 0:00:49]} 22. axb5 {[%clk 0:01:23]}  exf3 {[%clk 0:00:36]} 23. Qxf3 {[%clk 0:01:06]}  Qxf3 {[%clk 0:00:35]} 24. gxf3 {[%clk 0:01:07]}  axb5 {[%clk 0:00:35]} 25. Rxa8 {[%clk 0:01:03]}  Rxa8 {[%clk 0:00:35]} 26. Re7 {[%clk 0:01:03]}  Bc8 {[%clk 0:00:32]} 27. Nd4 {[%clk 0:00:54]}  Kf8 {[%clk 0:00:30]} 28. Rc7 {[%clk 0:00:50]}  b4 {[%clk 0:00:29]} 29. Kf2 {[%clk 0:00:47]}  Kg8 {[%clk 0:00:20]} 30. Nc6 {[%clk 0:00:45]}  Be6 {[%clk 0:00:17]} 31. Nxb4 {[%clk 0:00:44]}  Rb8 {[%clk 0:00:14]} 32. Nd3 {[%clk 0:00:40]}  Bf5 {[%clk 0:00:13]} 33. Ke3 {[%clk 0:00:19]}  Bxd3 {[%clk 0:00:10]} 34. Kxd3 {[%clk 0:00:19]}  Rxb2 {[%clk 0:00:11]} 35. Rd7 {[%clk 0:00:18]}  Kf8 {[%clk 0:00:09]} 36. Rxd5 {[%clk 0:00:18]}  Kf7 {[%clk 0:00:09]} 37. h4 {[%clk 0:00:18]}  g6 {[%clk 0:00:08]} 38. h5 {[%clk 0:00:17]}  gxh5 {[%clk 0:00:08]} 39. Rxh5 {[%clk 0:00:17]}  Kg6 {[%clk 0:00:09]} 40. Rh1 {[%clk 0:00:11]}  h5 {[%clk 0:00:09]} 41. c4 {[%clk 0:00:10]}  Kg5 {[%clk 0:00:08]} 42. Rc1 {[%clk 0:00:07]}  h4 {[%clk 0:00:07]} 43. c5 {[%clk 0:00:07]}  h3 {[%clk 0:00:07]} 44. c6 {[%clk 0:00:08]}  Rb8 {[%clk 0:00:06]} 45. c7 {[%clk 0:00:08]}  Rc8 {[%clk 0:00:06]} 46. Ke3 {[%clk 0:00:08]}  h2 {[%clk 0:00:06]} 47. Kf2 {[%clk 0:00:07]}  Rxc7 {[%clk 0:00:06]} 48. Rh1 {[%clk 0:00:06]}  Rc2+ {[%clk 0:00:04]} 49. Kg3 {[%clk 0:00:06]}  f5 {[%clk 0:00:04]} 50. f4+ {[%clk 0:00:01]}  Kh5 {[%clk 0:00:05]} 51. Re1 {[%clk 0:00:01]}  h1=Q {[%clk 0:00:04]} 52. Rxh1+ {[%clk 0:00:01]}  Kg6 {[%clk 0:00:05]} 53. Re1 {[%clk 0:00:01]}  Kf6 {[%clk 0:00:06]} 54. Rd1 {[%clk 0:00:01]}  Rc3+ {[%clk 0:00:07]} 55. Kf2 {[%clk 0:00:00]}  Rc4 {[%clk 0:00:08]} 0-1

[Event "January 2 Late 2024"]
[Site "https://www.chess.com"]
[Date "2024.01.02"]
[Round "8"]
[White "Lopusiewicz, Piotr"]
[Black "Gonzalez Zharikov, Andrey"]
[Result "1/2-1/2"]
[Board "127"]
[TimeControl "180+1"]
[WhiteFideId "1116029"]
[BlackFideId "5145287"]
[WhiteElo "2455"]
[BlackElo "2306"]
[WhiteTeam "POL"]
[BlackTeam "MEX"]
[WhiteClock "0:00:41"]
[BlackClock "0:01:27"]

1. d4 {[%clk 0:03:00]}  Nf6 {[%clk 0:02:53]} 2. c4 {[%clk 0:03:00]}  e6 {[%clk 0:02:53]} 3. Nf3 {[%clk 0:03:00]}  d5 {[%clk 0:02:54]} 4. Nc3 {[%clk 0:03:00]}  Be7 {[%clk 0:02:53]} 5. g3 {[%clk 0:03:01]}  O-O {[%clk 0:02:53]} 6. Bg2 {[%clk 0:03:01]}  dxc4 {[%clk 0:02:54]} 7. Ne5 {[%clk 0:03:01]}  c5 {[%clk 0:02:54]} 8. dxc5 {[%clk 0:03:00]}  Bxc5 {[%clk 0:02:54]} 9. Qxd8 {[%clk 0:02:56]}  Rxd8 {[%clk 0:02:54]} 10. Nxc4 {[%clk 0:02:57]}  Nc6 {[%clk 0:02:50]} 11. Bxc6 {[%clk 0:02:55]}  bxc6 {[%clk 0:02:50]} 12. a3 {[%clk 0:02:40]}  Ba6 {[%clk 0:02:47]} 13. Be3 {[%clk 0:02:35]}  Be7 {[%clk 0:02:39]} 14. Na5 {[%clk 0:02:29]}  Rdc8 {[%clk 0:02:33]} 15. Bg5 {[%clk 0:02:23]}  h6 {[%clk 0:02:32]} 16. Bxf6 {[%clk 0:02:22]}  Bxf6 {[%clk 0:02:31]} 17. Rc1 {[%clk 0:02:21]}  Rab8 {[%clk 0:02:30]} 18. b4 {[%clk 0:02:06]}  c5 {[%clk 0:02:30]} 19. Ne4 {[%clk 0:02:02]}  cxb4 {[%clk 0:02:30]} 20. Nxf6+ {[%clk 0:01:59]}  gxf6 {[%clk 0:02:29]} 21. Rxc8+ {[%clk 0:01:55]}  Rxc8 {[%clk 0:02:27]} 22. Kd2 {[%clk 0:01:54]}  bxa3 {[%clk 0:02:26]} 23. Ra1 {[%clk 0:01:54]}  Rc5 {[%clk 0:02:21]} 24. Rxa3 {[%clk 0:01:54]}  Rd5+ {[%clk 0:02:16]} 25. Ke1 {[%clk 0:01:43]}  Bb5 {[%clk 0:02:16]} 26. Rc3 {[%clk 0:01:18]}  a6 {[%clk 0:02:07]} 27. Nb3 {[%clk 0:01:08]}  Kg7 {[%clk 0:02:04]} 28. e3 {[%clk 0:01:04]}  f5 {[%clk 0:02:04]} 29. Nd4 {[%clk 0:01:04]}  Bd7 {[%clk 0:02:01]} 30. Rc7 {[%clk 0:01:03]}  a5 {[%clk 0:01:59]} 31. Ra7 {[%clk 0:01:01]}  a4 {[%clk 0:01:59]} 32. f4 {[%clk 0:00:51]}  Kf6 {[%clk 0:01:54]} 33. h3 {[%clk 0:00:50]}  Ke7 {[%clk 0:01:53]} 34. Nc6+ {[%clk 0:00:46]}  Kd6 {[%clk 0:01:41]} 35. Ne5 {[%clk 0:00:47]}  Ke7 {[%clk 0:01:39]} 36. g4 {[%clk 0:00:41]}  fxg4 {[%clk 0:01:33]} 37. hxg4 {[%clk 0:00:41]}  f6 {[%clk 0:01:32]} 38. Nxd7 {[%clk 0:00:41]}  Rxd7 {[%clk 0:01:27]} 39. Rxa4 {[%clk 0:00:41]} 1/2-1/2

[Event "January 2 Late 2024"]
[Site "https://www.chess.com"]
[Date "2024.01.02"]
[Round "8"]
[White "Antonio, Jorge Carlos"]
[Black "Salman, Ilhan Serhat"]
[Result "0-1"]
[Board "128"]
[TimeControl "180+1"]
[WhiteFideId "113190"]
[BlackFideId "6361579"]
[WhiteElo "2301"]
[BlackElo "2440"]
[WhiteTeam "ARG"]
[BlackTeam "TUR"]
[WhiteClock "0:00:43"]
[BlackClock "0:01:33"]

1. d4 {[%clk 0:03:00]}  g6 {[%clk 0:02:52]} 2. Nf3 {[%clk 0:03:00]}  Bg7 {[%clk 0:02:52]} 3. c4 {[%clk 0:03:00]}  b6 {[%clk 0:02:51]} 4. Nc3 {[%clk 0:03:01]}  Bb7 {[%clk 0:02:52]} 5. g3 {[%clk 0:03:00]}  Nf6 {[%clk 0:02:48]} 6. Bg2 {[%clk 0:03:01]}  d5 {[%clk 0:02:49]} 7. cxd5 {[%clk 0:02:59]}  Nxd5 {[%clk 0:02:48]} 8. Nxd5 {[%clk 0:02:59]}  Bxd5 {[%clk 0:02:47]} 9. O-O {[%clk 0:02:59]}  O-O {[%clk 0:02:48]} 10. Ne1 {[%clk 0:02:54]}  Bxg2 {[%clk 0:02:45]} 11. Nxg2 {[%clk 0:02:53]}  Qxd4 {[%clk 0:02:46]} 12. Be3 {[%clk 0:02:43]}  Qxd1 {[%clk 0:02:44]} 13. Rfxd1 {[%clk 0:02:43]}  Bxb2 {[%clk 0:02:44]} 14. Rab1 {[%clk 0:02:40]}  Bf6 {[%clk 0:02:43]} 15. Bh6 {[%clk 0:02:39]}  Re8 {[%clk 0:02:41]} 16. h4 {[%clk 0:02:37]}  Na6 {[%clk 0:02:37]} 17. h5 {[%clk 0:02:37]}  Rad8 {[%clk 0:02:35]} 18. hxg6 {[%clk 0:02:33]}  fxg6 {[%clk 0:02:32]} 19. Nf4 {[%clk 0:02:30]}  Nc5 {[%clk 0:02:27]} 20. Nd5 {[%clk 0:02:21]}  Ne6 {[%clk 0:02:23]} 21. Be3 {[%clk 0:02:14]}  c6 {[%clk 0:02:20]} 22. Nb4 {[%clk 0:02:13]}  Rxd1+ {[%clk 0:02:11]} 23. Rxd1 {[%clk 0:02:12]}  Rd8 {[%clk 0:02:12]} 24. Rxd8+ {[%clk 0:01:57]}  Nxd8 {[%clk 0:02:11]} 25. Bf4 {[%clk 0:01:57]}  e5 {[%clk 0:02:09]} 26. Be3 {[%clk 0:01:55]}  Kf7 {[%clk 0:02:09]} 27. Kf1 {[%clk 0:01:53]}  Ke6 {[%clk 0:02:10]} 28. Ke1 {[%clk 0:01:53]}  Be7 {[%clk 0:02:06]} 29. Nd3 {[%clk 0:01:51]}  c5 {[%clk 0:02:05]} 30. Kd1 {[%clk 0:01:51]}  Nc6 {[%clk 0:02:05]} 31. Kc2 {[%clk 0:01:50]}  Nd4+ {[%clk 0:02:01]} 32. Bxd4 {[%clk 0:01:51]}  cxd4 {[%clk 0:02:01]} 33. Kb3 {[%clk 0:01:50]}  Kd5 {[%clk 0:02:00]} 34. f3 {[%clk 0:01:50]}  Bd6 {[%clk 0:01:58]} 35. Nf2 {[%clk 0:01:47]}  b5 {[%clk 0:01:52]} 36. Ne4 {[%clk 0:01:47]}  Be7 {[%clk 0:01:50]} 37. g4 {[%clk 0:01:34]}  h5 {[%clk 0:01:49]} 38. gxh5 {[%clk 0:01:21]}  gxh5 {[%clk 0:01:49]} 39. Nf2 {[%clk 0:01:16]}  h4 {[%clk 0:01:47]} 40. Nh3 {[%clk 0:01:16]}  e4 {[%clk 0:01:44]} 41. fxe4+ {[%clk 0:01:07]}  Kxe4 {[%clk 0:01:44]} 42. Kc2 {[%clk 0:01:04]}  a5 {[%clk 0:01:38]} 43. Nf2+ {[%clk 0:01:00]}  Ke3 {[%clk 0:01:36]} 44. Ng4+ {[%clk 0:00:54]}  Kxe2 {[%clk 0:01:34]} 45. Ne5 {[%clk 0:00:47]}  h3 {[%clk 0:01:34]} 46. Nd3 {[%clk 0:00:45]}  h2 {[%clk 0:01:33]} 47. Nf4+ {[%clk 0:00:43]}  Kf3 {[%clk 0:01:33]} 0-1

[Event "January 2 Late 2024"]
[Site "https://www.chess.com"]
[Date "2024.01.02"]
[Round "8"]
[White "Vujacic, Igor"]
[Black "Lopez Del Alamo, Antonio"]
[Result "1-0"]
[Board "129"]
[TimeControl "180+1"]
[WhiteFideId "932620"]
[BlackFideId "2227339"]
[WhiteElo "2439"]
[BlackElo "2290"]
[WhiteTeam "MNE"]
[BlackTeam "ESP"]
[WhiteClock "0:01:56"]
[BlackClock "0:01:25"]

1. d4 {[%clk 0:03:00]}  Nf6 {[%clk 0:02:59]} 2. Bf4 {[%clk 0:03:00]}  g6 {[%clk 0:02:58]} 3. Nc3 {[%clk 0:03:00]}  d5 {[%clk 0:02:59]} 4. e3 {[%clk 0:03:00]}  Bg7 {[%clk 0:02:59]} 5. h4 {[%clk 0:03:01]}  h5 {[%clk 0:02:59]} 6. Nf3 {[%clk 0:03:01]}  O-O {[%clk 0:03:00]} 7. Ne5 {[%clk 0:02:58]}  c5 {[%clk 0:02:57]} 8. Qd2 {[%clk 0:02:55]}  Nc6 {[%clk 0:02:57]} 9. dxc5 {[%clk 0:02:43]}  Qa5 {[%clk 0:02:50]} 10. Nxc6 {[%clk 0:02:35]}  bxc6 {[%clk 0:02:51]} 11. a3 {[%clk 0:02:35]}  Qxc5 {[%clk 0:02:48]} 12. Na4 {[%clk 0:02:34]}  Ne4 {[%clk 0:02:31]} 13. Nxc5 {[%clk 0:02:34]}  Nxd2 {[%clk 0:02:31]} 14. Kxd2 {[%clk 0:02:34]}  Bxb2 {[%clk 0:02:30]} 15. Ra2 {[%clk 0:02:29]}  Bg7 {[%clk 0:02:27]} 16. Bc7 {[%clk 0:02:23]}  Bf5 {[%clk 0:02:14]} 17. Ba6 {[%clk 0:02:22]}  Bc8 {[%clk 0:02:11]} 18. Rb1 {[%clk 0:02:16]}  Bxa6 {[%clk 0:02:08]} 19. Nxa6 {[%clk 0:02:17]}  Rfc8 {[%clk 0:01:58]} 20. Rb7 {[%clk 0:02:15]}  Bf6 {[%clk 0:01:52]} 21. g3 {[%clk 0:02:13]}  Kg7 {[%clk 0:01:51]} 22. a4 {[%clk 0:02:10]}  e6 {[%clk 0:01:49]} 23. Ra3 {[%clk 0:02:05]}  Bd8 {[%clk 0:01:45]} 24. Rc3 {[%clk 0:01:58]}  Bxc7 {[%clk 0:01:35]} 25. Nxc7 {[%clk 0:01:57]}  Rab8 {[%clk 0:01:35]} 26. Rxb8 {[%clk 0:01:57]}  Rxb8 {[%clk 0:01:36]} 27. Rxc6 {[%clk 0:01:57]}  a5 {[%clk 0:01:25]} 28. Nb5 {[%clk 0:01:56]} 1-0